bitfinex-derivatives/quotes_SOLF0:USTF0_20250426
["timestamp","ask_amount","ask_price","bid_price","bid_amount"]
[1745695293150,6.7305,148.52,148.49,9.13954538]
[1745695293356,9.13954538,148.52,148.48,9.13954538]
[1745695294454,6.7307,148.51,148.48,15.87134538]
[1745695294656,9.13954538,148.52,148.48,15.87134538]
[1745695294855,9.13954538,148.53,148.49,15.87104538]
[1745695296255,6.7304,148.52,148.49,15.87104538]
[1745695299459,6.7304,148.52,148.49,6.7315]
[1745695307968,15.86994538,148.52,148.49,6.7315]
[1745695308767,9.13954538,148.52,148.5,6.7311]
[1745695308969,9.13954538,148.54,148.5,9.13954538]
[1745695309169,13.10514538,148.55,148.51,9.13954538]
[1745695309466,11.08884538,148.55,148.51,9.13954538]
[1745695309864,1.9493,148.55,148.52,9.13954538]
[1745695310063,23.44,148.58,148.53,9.13954538]
[1745695310269,32.57954538,148.58,148.54,9.13954538]
[1745695310467,9.13954538,148.58,148.54,15.86884538]
[1745695311773,15.86734538,148.58,148.54,15.86884538]
[1745695312272,6.7278,148.58,148.55,9.13954538]
[1745695313876,6.728,148.57,148.54,15.86884538]
[1745695319176,15.86724538,148.58,148.54,15.86884538]
[1745695320280,6.728,148.57,148.54,15.86884538]
[1745695323491,15.86724538,148.58,148.54,15.86884538]
[1745695323685,15.86724538,148.58,148.55,6.7288]
[1745695323880,11.20454538,148.59,148.55,9.13954538]
[1745695324078,9.13954538,148.6,148.56,9.13954538]
[1745695324278,9.13954538,148.6,148.57,6.7276]
[1745695324984,6.7264,148.61,148.58,6.7275]
[1745695325185,9.13954538,148.62,148.58,9.13954538]
[1745695325481,15.86534538,148.62,148.58,15.86704538]
[1745695325683,9.13954538,148.62,148.58,9.13954538]
[1745695325874,9.13954538,148.61,148.57,9.13954538]
[1745695326279,15.86604538,148.61,148.57,15.86734538]
[1745695326478,15.86604538,148.61,148.57,9.13954538]
[1745695327082,6.7266,148.6,148.57,9.13954538]
[1745695329083,6.7271,148.59,148.56,23.44]
[1745695329283,9.13954538,148.59,148.56,23.44]
[1745695329585,6.7276,148.58,148.56,23.44]
[1745695329885,9.13954538,148.59,148.56,23.44]
[1745695330081,9.13954538,148.6,148.56,23.44]
[1745695330583,9.13954538,148.59,148.56,23.44]
[1745695331087,6.7275,148.58,148.56,23.44]
[1745695331788,6.728,148.57,148.56,23.44]
[1745695334384,9.13954538,148.57,148.52,23.44]
[1745695334685,9.13954538,148.54,148.52,23.44]
[1745695334886,15.86904538,148.54,148.52,23.44]
[1745695335090,9.13954538,148.55,148.52,23.44]
[1745695335887,6.7291,148.55,148.52,30.1699]
[1745695341093,6.7291,148.55,148.53,9.13954538]
[1745695341493,4.1069,148.59,148.52,30.1699]
[1745695341494,9.13954538,148.58,148.54,9.13954538]
[1745695342491,9.13954538,148.58,148.54,15.86854538]
[1745695342695,9.13954538,148.58,148.52,23.44]
[1745695342696,9.13954538,148.59,148.55,9.13954538]
[1745695342893,32.57954538,148.6,148.56,9.13954538]
[1745695343092,9.13954538,148.6,148.56,9.13954538]
[1745695344194,6.7273,148.59,148.56,15.86764538]
[1745695345494,6.7275,148.58,148.55,15.86824538]
[1745695346697,6.7275,148.58,148.55,9.13954538]
[1745695346901,9.13954538,148.57,148.53,9.13954538]
[1745695348293,15.86774538,148.57,148.54,6.7292]
[1745695350898,6.7274,148.59,148.56,9.13954538]
[1745695351901,6.7275,148.58,148.55,9.13954538]
[1745695352093,9.13954538,148.58,148.53,9.13954538]
[1745695352395,15.86824538,148.56,148.52,32.57954538]
[1745695352702,15.86824538,148.56,148.53,6.7295]
[1745695353096,9.13954538,148.56,148.52,23.44]
[1745695353494,9.13954538,148.54,148.52,23.44]
[1745695353698,9.13954538,148.53,148.49,23.44]
[1745695354000,9.13954538,148.51,148.49,23.44]
[1745695355306,9.13954538,148.51,148.49,30.1715]
[1745695355603,9.13954538,148.53,148.49,32.57954538]
[1745695355808,15.86904538,148.54,148.51,6.7304]
[1745695356107,11.24224538,148.55,148.51,9.13954538]
[1745695357108,17.97144538,148.55,148.52,6.7301]
[1745695357306,17.97144538,148.55,148.52,15.86964538]
[1745695357808,8.8319,148.55,148.52,15.86964538]
[1745695359510,6.7295,148.54,148.51,6.7305]
[1745695359809,11.24224538,148.55,148.51,6.7305]
[1745695359810,11.24224538,148.55,148.51,9.13954538]
[1745695361313,17.97144538,148.55,148.52,6.7302]
[1745695362315,11.24224538,148.55,148.53,6.7297]
[1745695362516,15.86804538,148.56,148.53,6.7297]
[1745695365420,15.86804538,148.56,148.52,15.86954538]
[1745695366618,6.7289,148.55,148.52,15.86954538]
[1745695367522,6.7289,148.55,148.52,6.73]
[1745695367717,6.7293,148.54,148.51,15.87004538]
[1745695368517,15.86864538,148.55,148.51,15.87004538]
[1745695368719,15.86864538,148.55,148.52,6.7301]
[1745695369121,6.7291,148.55,148.52,15.86964538]
[1745695375630,6.7293,148.54,148.52,15.86964538]
[1745695376431,6.7291,148.55,148.52,15.86964538]
[1745695384133,6.7294,148.54,148.52,9.13954538]
[1745695386535,6.729,148.55,148.52,15.86974538]
[1745695393342,6.729,148.55,148.53,6.7297]
[1745695393541,15.86814538,148.56,148.53,6.7297]
[1745695394345,6.7281,148.57,148.54,6.7293]
[1745695394541,6.7281,148.57,148.54,15.86884538]
[1745695395639,6.7284,148.56,148.54,15.86884538]
[1745695395844,6.7284,148.56,148.53,15.86924538]
[1745695396044,9.13954538,148.57,148.53,9.13954538]
[1745695396246,6.7292,148.55,148.52,15.86974538]
[1745695400752,6.7296,148.54,148.52,9.13954538]
[1745695401550,6.7296,148.54,148.52,15.86974538]
[1745695401851,9.13954538,148.56,148.52,15.86974538]
[1745695401852,6.729,148.55,148.52,15.86974538]
[1745695403862,6.7296,148.54,148.52,9.13954538]
[1745695404051,9.13954538,148.55,148.51,9.13954538]
[1745695404748,6.7297,148.54,148.51,9.13954538]
[1745695405051,9.13954538,148.54,148.5,39.29034538]
[1745695405551,9.13954538,148.54,148.5,32.55954538]
[1745695405752,9.13954538,148.53,148.5,23.42]
[1745695405955,9.13954538,148.53,148.49,6.7313]
[1745695406253,9.13954538,148.53,148.49,15.87084538]
[1745695407359,6.7306,148.52,148.49,15.87084538]
[1745695407551,9.13954538,148.53,148.48,6.7319]
[1745695407756,9.13954538,148.53,148.49,9.13954538]
[1745695409258,6.7309,148.51,148.49,9.13954538]
[1745695410557,6.7309,148.51,148.48,15.87144538]
[1745695416958,6.7311,148.5,148.48,15.87144538]
[1745695418562,6.7309,148.51,148.48,15.87144538]
[1745695419162,6.7316,148.49,148.47,32.55954538]
[1745695419565,6.732,148.48,148.47,23.42]
[1745695421367,6.7318,148.49,148.47,23.42]
[1745695421763,6.7318,148.49,148.47,32.55954538]
[1745695424471,9.13954538,148.52,148.48,9.13954538]
[1745695425268,6.731,148.51,148.48,15.87154538]
[1745695426571,9.13954538,148.49,148.44,9.13954538]
[1745695426772,9.13954538,148.48,148.43,9.13954538]
[1745695427176,6.7328,148.47,148.43,15.87364538]
[1745695428072,6.733,148.46,148.43,15.87364538]
[1745695428371,9.13954538,148.48,148.44,9.13954538]
[1745695428571,6.7328,148.47,148.44,9.13954538]
[1745695429172,6.7328,148.47,148.45,9.13954538]
[1745695429373,6.7321,148.48,148.46,9.13954538]
[1745695433974,6.7317,148.49,148.46,9.13954538]
[1745695434172,11.08174538,148.5,148.46,9.13954538]
[1745695434467,6.7323,148.48,148.46,9.13954538]
[1745695436873,6.7323,148.48,148.45,15.87264538]
[1745695443183,6.7323,148.48,148.45,9.13954538]
[1745695443378,9.13954538,148.49,148.45,9.13954538]
[1745695443585,6.7326,148.47,148.44,15.87324538]
[1745695443782,9.13954538,148.48,148.42,23.44]
[1745695443986,9.13954538,148.47,148.43,9.13954538]
[1745695444281,6.7332,148.46,148.43,9.13954538]
[1745695444679,9.13954538,148.47,148.43,9.13954538]
[1745695445181,9.13954538,148.45,148.42,23.44]
[1745695445382,9.13954538,148.43,148.39,23.44]
[1745695445581,15.87454538,148.42,148.39,23.44]
[1745695448182,15.87454538,148.42,148.39,30.176]
[1745695448382,9.13954538,148.41,148.39,23.44]
[1745695448783,15.87504538,148.41,148.39,23.44]
[1745695448982,9.13954538,148.4,148.36,32.57954538]
[1745695449173,9.13954538,148.39,148.36,23.44]
[1745695449480,6.7368,148.38,148.36,23.44]
[1745695449882,15.87634538,148.38,148.36,23.44]
[1745695450177,6.7371,148.37,148.33,32.57954538]
[1745695450783,6.7371,148.37,148.33,39.31804538]
[1745695452484,6.7371,148.37,148.34,6.7383]
[1745695452685,9.13954538,148.38,148.33,32.57954538]
[1745695452882,6.7365,148.39,148.34,9.13954538]
[1745695452883,9.13954538,148.39,148.34,9.13954538]
[1745695453080,9.13954538,148.39,148.35,9.13954538]
[1745695454287,6.7366,148.38,148.35,15.87744538]
[1745695454888,6.7363,148.39,148.36,15.87684538]
[1745695455185,11.19374538,148.41,148.36,9.13954538]
[1745695455386,6.7359,148.4,148.36,15.87684538]
[1745695455586,11.19374538,148.41,148.36,15.87684538]
[1745695456387,6.7362,148.39,148.36,15.87684538]
[1745695456689,6.7362,148.39,148.36,9.13954538]
[1745695458490,6.7366,148.38,148.36,9.13954538]
[1745695458686,9.13954538,148.4,148.36,15.87694538]
[1745695458887,23.44,148.42,148.39,9.13954538]
[1745695459087,6.7351,148.42,148.39,9.13954538]
[1745695459289,6.7351,148.42,148.4,9.13954538]
[1745695463695,6.7343,148.43,148.4,15.87504538]
[1745695464594,6.7343,148.43,148.4,9.13954538]
[1745695465895,9.13954538,148.43,148.39,9.13954538]
[1745695466594,6.7352,148.42,148.39,9.13954538]
[1745695467695,6.7352,148.42,148.39,15.87554538]
[1745695468492,1.9807,148.44,148.41,9.13954538]
[1745695468697,9.13954538,148.46,148.42,9.13954538]
[1745695468893,9.13954538,148.47,148.43,9.13954538]
[1745695469095,6.7337,148.45,148.42,9.13954538]
[1745695473796,9.13954538,148.46,148.42,9.13954538]
[1745695473999,6.7329,148.47,148.44,9.13954538]
[1745695474197,36.68524538,148.48,148.44,9.13954538]
[1745695475300,6.733,148.46,148.44,9.13954538]
[1745695475796,6.7326,148.47,148.44,9.13954538]
[1745695477703,32.261,148.48,148.45,9.13954538]
[1745695477902,25.5288,148.48,148.45,9.13954538]
[1745695478102,2.0688,148.48,148.46,9.13954538]
[1745695478302,9.13954538,148.5,148.46,9.13954538]
[1745695478804,36.48584538,148.51,148.47,9.13954538]
[1745695479194,6.7319,148.49,148.47,9.13954538]
[1745695480104,6.732,148.48,148.47,9.13954538]
[1745695481306,6.7318,148.49,148.47,9.13954538]
[1745695482818,36.48584538,148.51,148.47,9.13954538]
[1745695483001,34.51864538,148.51,148.47,9.13954538]
[1745695483304,2.0519,148.55,148.48,9.13954538]
[1745695483305,9.13954538,148.52,148.48,9.13954538]
[1745695483700,9.13954538,148.52,148.45,23.46]
[1745695483701,6.7303,148.52,148.49,9.13954538]
[1745695484209,6.7308,148.51,148.49,9.13954538]
[1745695484909,9.13954538,148.51,148.47,9.13954538]
[1745695487312,6.7318,148.49,148.47,9.13954538]
[1745695489511,6.7313,148.5,148.47,15.87194538]
[1745695489712,6.7313,148.5,148.48,9.13954538]
[1745695490714,6.7316,148.49,148.48,9.13954538]
[1745695492714,9.13954538,148.53,148.48,9.13954538]
[1745695492912,9.13954538,148.53,148.49,9.13954538]
[1745695493613,6.731,148.51,148.49,9.13954538]
[1745695497314,6.7312,148.5,148.48,9.13954538]
[1745695500018,6.7308,148.51,148.48,9.13954538]
[1745695501418,6.7308,148.51,148.48,15.87144538]
[1745695501621,6.7303,148.52,148.49,9.13954538]
[1745695501824,6.7303,148.52,148.5,9.13954538]
[1745695502723,6.73,148.53,148.5,15.87064538]
[1745695502920,23.46,148.54,148.51,9.13954538]
[1745695503116,6.7302,148.52,148.51,9.13954538]
[1745695504026,6.7299,148.53,148.51,9.13954538]
[1745695506224,6.7296,148.54,148.51,9.13954538]
[1745695506419,6.7296,148.54,148.53,9.13954538]
[1745695506629,32.61954538,148.58,148.53,9.13954538]
[1745695506827,6.7282,148.57,148.55,9.13954538]
[1745695507621,30.2077,148.58,148.55,9.13954538]
[1745695507826,1.962,148.59,148.57,9.13954538]
[1745695508019,9.13954538,148.63,148.58,9.13954538]
[1745695508218,9.13954538,148.63,148.59,9.13954538]
[1745695508422,9.13954538,148.62,148.57,9.13954538]
[1745695508722,6.7268,148.6,148.57,9.13954538]
[1745695509627,9.13954538,148.6,148.56,9.13954538]
[1745695510426,9.13954538,148.59,148.55,9.13954538]
[1745695511527,6.7276,148.58,148.55,9.13954538]
[1745695511928,6.7276,148.58,148.56,9.13954538]
[1745695512934,6.7276,148.58,148.57,9.13954538]
[1745695516526,9.13954538,148.63,148.57,9.13954538]
[1745695516726,9.13954538,148.63,148.59,9.13954538]
[1745695517129,6.7263,148.61,148.59,9.13954538]
[1745695519331,6.7263,148.61,148.58,9.13954538]
[1745695521330,6.7259,148.62,148.58,9.13954538]
[1745695521530,6.7259,148.62,148.59,9.13954538]
[1745695521825,6.7259,148.62,148.6,9.13954538]
[1745695522027,6.7254,148.63,148.61,9.13954538]
[1745695524334,6.7254,148.63,148.6,9.13954538]
[1745695525036,8.6869,148.64,148.6,9.13954538]
[1745695525235,1.962,148.64,148.61,9.13954538]
[1745695525434,9.13954538,148.66,148.62,9.13954538]
[1745695525731,6.7248,148.64,148.62,9.13954538]
[1745695525931,9.13954538,148.66,148.62,9.13954538]
[1745695526235,6.7244,148.65,148.63,9.13954538]
[1745695528132,6.7248,148.64,148.62,9.13954538]
[1745695529437,9.13954538,148.67,148.62,9.13954538]
[1745695529634,9.13954538,148.68,148.64,9.13954538]
[1745695530534,6.7242,148.66,148.64,9.13954538]
[1745695536641,6.7242,148.66,148.65,9.13954538]
[1745695537242,6.7236,148.67,148.65,9.13954538]
[1745695538142,6.723,148.68,148.65,15.86384538]
[1745695538342,6.723,148.68,148.61,23.42]
[1745695538343,2.0875,148.69,148.67,9.13954538]
[1745695538637,9.13954538,148.72,148.68,9.13954538]
[1745695539340,9.13954538,148.71,148.67,9.13954538]
[1745695540143,6.7228,148.69,148.67,9.13954538]
[1745695544550,6.723,148.68,148.67,9.13954538]
[1745695553861,6.723,148.68,148.65,30.1442]
[1745695554050,6.723,148.68,148.66,9.13954538]
[1745695559165,6.723,148.68,148.67,9.13954538]
[1745695560368,9.13954538,148.7,148.66,9.13954538]
[1745695561268,6.7234,148.68,148.66,9.13954538]
[1745695562184,25.4813,148.73,148.65,23.42]
[1745695562185,6.7227,148.69,148.67,9.13954538]
[1745695563175,6.723,148.68,148.67,9.13954538]
[1745695563673,6.7227,148.69,148.67,9.13954538]
[1745695565270,6.723,148.68,148.67,9.13954538]
[1745695567170,6.7227,148.69,148.67,9.13954538]
[1745695568274,6.7218,148.71,148.68,9.13954538]
[1745695568669,34.62084538,148.73,148.68,9.13954538]
[1745695569766,6.7219,148.71,148.69,9.13954538]
[1745695570367,25.4813,148.73,148.69,9.13954538]
[1745695570572,6.7214,148.72,148.69,15.86194538]
[1745695571172,6.7217,148.71,148.69,9.13954538]
[1745695571472,2.0613,148.73,148.69,9.13954538]
[1745695571775,11.20084538,148.73,148.69,9.13954538]
[1745695573168,6.7213,148.72,148.69,9.13954538]
[1745695573374,11.20084538,148.73,148.69,9.13954538]
[1745695576178,6.7219,148.71,148.69,9.13954538]
[1745695577774,6.7213,148.72,148.69,9.13954538]
[1745695578180,6.7217,148.71,148.69,9.13954538]
[1745695587486,6.7221,148.7,148.69,9.13954538]
[1745695587683,9.13954538,148.71,148.67,9.13954538]
[1745695588586,6.7223,148.7,148.67,9.13954538]
[1745695588789,9.13954538,148.71,148.67,9.13954538]
[1745695589582,6.7222,148.7,148.67,9.13954538]
[1745695590184,6.7216,148.71,148.68,9.13954538]
[1745695590380,6.7216,148.71,148.69,9.13954538]
[1745695590685,6.7216,148.71,148.68,9.13954538]
[1745695594285,6.7216,148.71,148.67,30.1233]
[1745695594486,6.7216,148.71,148.68,9.13954538]
[1745695594687,6.7216,148.71,148.68,15.86254538]
[1745695594986,6.7216,148.71,148.69,9.13954538]
[1745695596892,6.7221,148.7,148.68,9.13954538]
[1745695606092,6.7218,148.71,148.68,15.86244538]
[1745695608394,6.7221,148.7,148.68,9.13954538]
[1745695608899,6.7213,148.72,148.69,15.86184538]
[1745695609494,8.7822,148.73,148.7,15.86164538]
[1745695609799,6.7209,148.73,148.7,15.86164538]
[1745695610306,10.8474,148.74,148.71,9.13954538]
[1745695610491,8.8125,148.74,148.72,9.13954538]
[1745695617002,8.8125,148.74,148.71,9.13954538]
[1745695617202,6.7207,148.73,148.7,15.86144538]
[1745695618002,8.8124,148.74,148.7,15.86144538]
[1745695618401,8.8124,148.74,148.71,6.7216]
[1745695618903,8.8124,148.74,148.7,15.86144538]
[1745695619902,6.7209,148.73,148.7,15.86144538]
[1745695622402,6.7209,148.73,148.7,9.13954538]
[1745695622808,2.092,148.74,148.7,9.13954538]
[1745695622999,9.13954538,148.73,148.68,9.13954538]
[1745695623202,9.13954538,148.72,148.68,9.13954538]
[1745695623502,9.13954538,148.72,148.67,23.4]
[1745695623702,9.13954538,148.72,148.68,9.13954538]
[1745695624205,6.7224,148.7,148.68,9.13954538]
[1745695625006,6.7225,148.69,148.68,9.13954538]
[1745695627107,6.7222,148.7,148.68,9.13954538]
[1745695627503,9.13954538,148.72,148.68,9.13954538]
[1745695627706,6.7215,148.72,148.69,9.13954538]
[1745695627907,11.23004538,148.73,148.69,9.13954538]
[1745695628409,6.7213,148.72,148.69,9.13954538]
[1745695628707,11.23004538,148.73,148.69,9.13954538]
[1745695630111,6.7216,148.71,148.69,9.13954538]
[1745695630310,6.7216,148.71,148.68,9.13954538]
[1745695632615,6.7216,148.71,148.68,15.86244538]
[1745695632817,15.86084538,148.72,148.68,9.13954538]
[1745695633015,11.23004538,148.73,148.69,9.13954538]
[1745695633210,11.23004538,148.73,148.69,15.86174538]
[1745695633613,17.95114538,148.73,148.69,15.86174538]
[1745695633812,2.092,148.74,148.71,9.13954538]
[1745695634212,8.8127,148.74,148.71,9.13954538]
[1745695635217,6.7208,148.73,148.71,9.13954538]
[1745695635819,6.7212,148.72,148.69,6.7224]
[1745695636019,6.7212,148.72,148.7,9.13954538]
[1745695638922,6.7209,148.73,148.7,15.86154538]
[1745695640224,6.7209,148.73,148.7,9.13954538]
[1745695640728,8.8125,148.74,148.71,9.13954538]
[1745695640928,2.092,148.74,148.72,9.13954538]
[1745695641129,11.12754538,148.77,148.73,9.13954538]
[1745695642230,6.7201,148.75,148.73,9.13954538]
[1745695644430,6.7196,148.76,148.73,9.13954538]
[1745695645629,6.7198,148.75,148.73,9.13954538]
[1745695651937,6.7198,148.75,148.72,9.13954538]
[1745695652239,9.13954538,148.75,148.71,32.53954538]
[1745695653434,6.7207,148.74,148.71,32.53954538]
[1745695658235,9.13954538,148.73,148.69,15.86184538]
[1745695658536,9.13954538,148.73,148.69,9.13954538]
[1745695659543,6.7214,148.72,148.69,9.13954538]
[1745695661445,6.7214,148.72,148.69,15.86204538]
[1745695665050,9.13954538,148.73,148.68,32.53954538]
[1745695665244,9.13954538,148.72,148.68,23.4]
[1745695666148,6.7223,148.7,148.68,23.4]
[1745695677764,6.7225,148.69,148.68,23.4]
[1745695678060,6.7225,148.69,148.67,9.13954538]
[1745695678660,6.723,148.68,148.67,9.13954538]
[1745695678861,9.13954538,148.71,148.67,9.13954538]
[1745695679360,6.7222,148.7,148.67,9.13954538]
[1745695680361,6.7228,148.69,148.67,9.13954538]
[1745695686768,9.13954538,148.69,148.65,32.53954538]
[1745695687067,9.13954538,148.68,148.65,23.4]
[1745695687267,6.7243,148.66,148.62,39.26514538]
[1745695687469,15.86384538,148.66,148.62,39.26514538]
[1745695687667,6.7243,148.66,148.63,9.13954538]
[1745695687967,6.7243,148.66,148.63,15.86474538]
[1745695688266,6.7243,148.66,148.63,9.13954538]
[1745695689268,6.7244,148.65,148.62,30.1255]
[1745695689471,6.7244,148.65,148.63,9.13954538]
[1745695689665,9.13954538,148.67,148.63,9.13954538]
[1745695689864,6.724,148.66,148.63,9.13954538]
[1745695690165,9.13954538,148.67,148.63,9.13954538]
[1745695690667,6.7243,148.65,148.63,9.13954538]
[1745695692266,6.7243,148.65,148.62,32.53954538]
[1745695692467,6.7248,148.64,148.62,32.53954538]
[1745695692765,6.7248,148.64,148.62,23.4]
[1745695694871,6.7248,148.64,148.61,9.13954538]
[1745695695374,6.7245,148.65,148.62,9.13954538]
[1745695695568,32.53954538,148.67,148.63,9.13954538]
[1745695695764,23.4,148.67,148.64,9.13954538]
[1745695696174,6.7242,148.66,148.64,9.13954538]
[1745695701869,6.7236,148.67,148.64,9.13954538]
[1745695704576,6.7236,148.67,148.65,9.13954538]
[1745695706676,1.9971,148.69,148.66,9.13954538]
[1745695706980,23.4,148.72,148.68,9.13954538]
[1745695707181,6.7217,148.71,148.68,9.13954538]
[1745695707779,6.7217,148.71,148.69,9.13954538]
[1745695715789,6.7217,148.71,148.68,9.13954538]
[1745695716486,6.7217,148.71,148.68,15.86244538]
[1745695718889,30.1212,148.72,148.69,6.7224]
[1745695719090,30.1212,148.72,148.69,15.86194538]
[1745695719988,6.7212,148.72,148.69,15.86194538]
[1745695723096,6.7212,148.72,148.69,9.13954538]
[1745695724293,6.7212,148.72,148.69,15.86194538]
[1745695728496,15.86044538,148.73,148.69,15.86194538]
[1745695729796,6.7212,148.72,148.69,15.86194538]
[1745695730095,6.7212,148.72,148.69,9.13954538]
[1745695731496,6.7212,148.72,148.69,15.86194538]
[1745695731796,6.7212,148.72,148.7,9.13954538]
[1745695732392,6.7209,148.73,148.7,9.13954538]
[1745695734498,9.13954538,148.73,148.69,9.13954538]
[1745695735100,6.7215,148.72,148.69,9.13954538]
[1745695744701,9.13954538,148.73,148.69,9.13954538]
[1745695744906,9.13954538,148.71,148.67,23.4]
[1745695745101,9.13954538,148.7,148.67,23.4]
[1745695745400,6.7223,148.7,148.67,23.4]
[1745695745699,9.13954538,148.71,148.67,23.4]
[1745695746103,6.7222,148.7,148.67,23.4]
[1745695747004,6.7222,148.7,148.67,32.53954538]
[1745695747902,6.7218,148.71,148.68,9.13954538]
[1745695749507,6.7218,148.71,148.69,9.13954538]
[1745695749703,6.7218,148.71,148.68,9.13954538]
[1745695751509,6.7221,148.7,148.68,9.13954538]
[1745695752614,6.7221,148.7,148.67,32.53954538]
[1745695756711,6.7221,148.7,148.67,39.26284538]
[1745695758011,6.7221,148.7,148.67,15.86284538]
[1745695758420,9.13954538,148.73,148.68,9.13954538]
[1745695758716,9.13954538,148.73,148.69,9.13954538]
[1745695759118,6.7215,148.72,148.69,9.13954538]
[1745695764419,6.7217,148.71,148.69,9.13954538]
[1745695765623,15.86084538,148.72,148.69,15.86204538]
[1745695765822,6.7213,148.72,148.69,15.86204538]
[1745695766423,6.7213,148.72,148.69,9.13954538]
[1745695768925,6.7217,148.71,148.68,9.13954538]
[1745695772628,6.7221,148.7,148.67,9.13954538]
[1745695773027,6.7221,148.7,148.67,15.86294538]
[1745695777534,6.7221,148.7,148.68,9.13954538]
[1745695777830,6.7218,148.71,148.68,9.13954538]
[1745695778834,6.7218,148.71,148.68,15.86234538]
[1745695781336,6.7218,148.71,148.68,9.13954538]
[1745695781536,6.7222,148.7,148.68,9.13954538]
[1745695783441,6.7218,148.71,148.68,15.86254538]
[1745695788137,6.7218,148.71,148.68,6.723]
[1745695788341,6.7218,148.71,148.67,15.86274538]
[1745695790038,6.7221,148.7,148.67,15.86274538]
[1745695794342,6.7221,148.7,148.68,9.13954538]
[1745695798250,6.7218,148.71,148.68,15.86254538]
[1745695798547,36.58244538,148.74,148.69,9.13954538]
[1745695798942,6.7213,148.72,148.69,15.86184538]
[1745695799449,6.7213,148.72,148.7,9.13954538]
[1745695800546,6.7209,148.73,148.7,9.13954538]
[1745695800950,36.58244538,148.74,148.7,9.13954538]
[1745695802153,6.7208,148.73,148.7,9.13954538]
[1745695802551,6.7213,148.72,148.7,9.13954538]
[1745695803451,6.7209,148.73,148.7,9.13954538]
[1745695804253,6.7213,148.72,148.7,9.13954538]
[1745695804850,6.7209,148.73,148.7,9.13954538]
[1745695805051,36.58244538,148.74,148.7,9.13954538]
[1745695805354,36.58244538,148.74,148.69,6.7223]
[1745695805848,36.58244538,148.74,148.68,15.86234538]
[1745695806153,9.13954538,148.7,148.66,23.4]
[1745695806352,15.86294538,148.68,148.64,6.7247]
[1745695808750,6.7234,148.67,148.64,6.7247]
[1745695810857,6.7234,148.67,148.64,15.86424538]
[1745695813354,9.13954538,148.67,148.63,23.38]
[1745695813660,9.13954538,148.65,148.63,23.38]
[1745695813853,6.7252,148.63,148.6,39.26604538]
[1745695814051,15.86474538,148.63,148.6,30.1265]
[1745695814454,6.7252,148.63,148.6,30.1265]
[1745695814654,15.86454538,148.64,148.61,6.7261]
[1745695816158,6.7253,148.63,148.6,39.26594538]
[1745695816859,15.86454538,148.64,148.61,6.7261]
[1745695817061,6.725,148.64,148.61,15.86564538]
[1745695817963,9.13954538,148.65,148.62,15.86514538]
[1745695817964,6.7244,148.65,148.62,15.86514538]
[1745695818262,6.7244,148.65,148.63,9.13954538]
[1745695819362,6.724,148.66,148.63,9.13954538]
[1745695820065,6.724,148.66,148.63,15.86474538]
[1745695822070,6.724,148.66,148.63,6.7252]
[1745695822282,15.86354538,148.66,148.62,15.86514538]
[1745695822863,15.86354538,148.66,148.63,6.7252]
[1745695824062,15.86354538,148.66,148.62,15.86504538]
[1745695827063,15.86354538,148.66,148.62,6.7255]
[1745695829366,6.7243,148.65,148.62,6.7255]
[1745695830865,15.86384538,148.65,148.62,6.7255]
[1745695831768,15.86384538,148.65,148.61,15.86544538]
[1745695832573,6.7248,148.64,148.61,15.86544538]
[1745695832867,6.7248,148.64,148.61,6.7259]
[1745695833567,15.86434538,148.64,148.61,6.7259]
[1745695834965,6.7253,148.63,148.6,32.53954538]
[1745695835264,15.86484538,148.63,148.6,23.4]
[1745695836677,6.7253,148.63,148.6,30.1264]
[1745695836867,6.7253,148.63,148.6,39.26594538]
[1745695852280,6.7253,148.63,148.61,6.7261]
[1745695852474,15.86454538,148.64,148.61,6.7261]
[1745695852669,9.13954538,148.64,148.6,32.53954538]
[1745695853477,6.7252,148.63,148.6,39.26574538]
[1745695853678,9.13954538,148.64,148.6,32.53954538]
[1745695854680,15.86474538,148.64,148.61,6.7261]
[1745695857587,9.13954538,148.62,148.57,23.4]
[1745695857880,9.13954538,148.61,148.57,32.53954538]
[1745695858081,9.13954538,148.61,148.58,6.7272]
[1745695858583,15.86554538,148.62,148.58,15.86674538]
[1745695861387,15.86554538,148.62,148.59,6.727]
[1745695861584,6.726,148.62,148.59,15.86654538]
[1745695862792,9.13954538,148.63,148.6,6.7263]
[1745695863089,15.86444538,148.64,148.6,15.86584538]